Cogmind - Beta 15 @@@ ROGUE MODE // 2025.09.19 @ 13:10:30 Player: winnking222 Result: Destroyed by as-61564 with Assembled Heavy Rifle Performance ------------- Evolutions (0) 0 Regions Visited (2) 400 Robots Destroyed (36) 180 Value Destroyed (809) 809 Prototype IDs (1) 20 Alien Tech Used (0) 0 Bonus (0) 0 TOTAL SCORE: 1409 Bonus ------- None Cogmind --------- Core Integrity 0/250 Matter 221/300 Energy 55/100 System Corruption 0% Temperature Cool (69) Movement Rolling (110) Ox2 Location -10/Mines Parts ------- > --- POWER (1) -------- (None) > --- PROPULSION (2) --- Wheel > --- UTILITY (2) ------ Improved Heat Sink Large Storage Unit > --- WEAPON (2) ------- Beam Rifle Beam Rifle > --- INVENTORY (15) --- Heavy Ion Engine Medium Matter Pod (100) Shield Generator Heavy EM Pulse Gun Heavy EM Pulse Gun Beam Rifle Beam Rifle Assault Rifle Light Assault Rifle Grenade Launcher Peak State ------------ > --- POWER ------------ Heavy Ion Engine > --- PROPULSION ------- Wheel > --- UTILITY ---------- Improved Heat Sink Large Storage Unit > --- WEAPON ----------- Beam Rifle Beam Rifle > --- INVENTORY -------- Heavy Ion Engine Medium Matter Pod Shield Generator Heavy EM Pulse Gun Heavy EM Pulse Gun Beam Rifle Beam Rifle Assault Rifle Light Assault Rifle Grenade Launcher [Rating: 13] Favorites ----------- Power Heavy Ion Engine Engine Heavy Ion Engine Propulsion Light Treads Treads Light Treads Leg Aluminum Leg Wheel Compact Wheel Utility Large Storage Unit Device Seismic Detector Storage Large Storage Unit Weapon Assault Rifle Energy Gun Beam Rifle Ballistic Gun Assault Rifle Launcher Grenade Launcher Build | -11 -10 -10 ------- Run | Yrd Mat Min Slots Evolved . | . . . Power . | . . . Propulsion . | . . . Utility . | . . . Weapon . | . . . Parts Attached 28 | 7 12 9 Power 4 | 1 2 1 Engine 4 | 1 2 1 Core . | . . . Reactor . | . . . Propulsion 7 | 2 3 2 Treads 2 | 2 . . Leg 2 | . 2 . Wheel 3 | . 1 2 Hover . | . . . Flight . | . . . Utility 7 | 2 4 1 Device 4 | 1 2 1 Storage 3 | 1 2 . Processor . | . . . Hackware . | . . . Protection . | . . . Artifact . | . . . Weapon 10 | 2 3 5 Energy Gun 3 | . . 3 Energy Cannon . | . . . Ballistic Gun 6 | 2 3 1 Ballistic Cannon . | . . . Launcher 1 | . . 1 Special Weapon . | . . . Impact Weapon . | . . . Slashing Weapon . | . . . Piercing Weapon . | . . . Special Melee Weapon . | . . . Unidentified Prototypes 1 | . 1 . Parts Lost 13 | . 5 8 Power 2 | . . 2 Propulsion 5 | . 2 3 Utility 3 | . 2 1 Weapon 3 | . 1 2 Highest Loss Streak 6 | . 2 6 To Critical Strikes . | . . . Average Backups 9 | 5 9 13 Power 1 | . 1 1 Propulsion 1 | 3 1 . Utility 2 | . 2 2 Weapon 4 | . 4 8 Tool/Special . | . . . Unused Backups 11 | . 4 7 Power 2 | . 1 1 Propulsion 3 | . 3 . Utility 1 | . . 1 Weapon 5 | . . 5 Tool/Special . | . . . Average Slot Usage (%) 91 | . 93 84 Engine 13 | . 13 12 Treads 15 | . 19 . Leg 5 | . 3 15 Wheel 4 | . 5 2 Device 9 | . 8 12 Storage 14 | . 14 14 Energy Gun 1 | . . 8 Ballistic Gun 25 | . 27 15 Peak Build Rating 13 | 7 11 13 Average Rating 8 | 5 9 9 On Entrance 5 | . 7 9 Naked Turns . | . . . Heaviest Build 35 | 12 32 35 Greatest Support 40 | 40 40 20 Greatest Overweight (x) 11 | . 1 11 Average Overweight (x) . | . . 1 Largest Inventory Capacity 15 | 8 15 15 Average Capacity 11 | 7 11 15 Most Carried 15 | 7 15 15 Average Carried 9 | 6 9 13 Final Capacity 15 | 8 15 15 Final Carried 15 | 7 15 10 Class Distribution -------------------- 85% | Mutant 14% | Scavenger-Mutant Dominant Class ---------------- Mutant | -10/Materials Scavenger-Mutant | -10/Mines Resources | -11 -10 -10 ----------- Run | Yrd Mat Min Matter Collected 911 | 342 477 92 Remotely . | . . . Salvage Created 1073 | 96 781 196 Parts 84 | 19 49 16 Haulers Intercepted 1 | . 1 . Recyclers Shooed 3 | 1 2 . Parts Field Recycled . | . . . Retrieved Matter . | . . . Parts Self-Destructed . | . . . Prevented . | . . . Kills | -11 -10 -10 ------- Run | Yrd Mat Min Combat Hostiles Destroyed 35 | . 19 16 Guns 32 | . 19 13 AOE 3 | . . 3 Classes Destroyed 8 | 1 4 3 Builder 2 | . . 2 Tunneler 6 | 6 . . Hauler 1 | . 1 . Watcher 1 | . 1 . Swarmer 9 | . 3 6 Grunt 16 | . 16 . Demolisher 1 | . . 1 Assembled 9 | . . 9 Best Kill Streak 8 | 3 5 8 Combat Bots Only 7 | . 5 7 Max Kills in Single Turn 2 | 1 1 2 Gunslinging . | . . . Exploded 1 | . . 1 Melee . | . . . Uniques/NPCs Destroyed . | . . . Combat | -11 -10 -10 -------- Run | Yrd Mat Min Hostile Shots Fired 174 | . 93 81 Missed 42 | . 27 15 Hits 132 | . 66 66 Melee 2 | . . 2 Projectile 130 | . 66 64 AOE 7 | . . 7 Critical Strikes 3 | . 3 . Damage Taken 1657 | . 719 938 Core 257 | . 96 161 Absorbed by Shields 85 | . 85 . Core Remaining (%) 100 | 100 . . Volleys Fired 136 | 18 81 37 Largest 2 | 2 2 2 Hottest 112 | 40 40 112 Shots Fired 270 | 36 160 74 Gun 266 | 36 160 70 Cannon . | . . . Launcher 4 | . . 4 Special . | . . . Kinetic 224 | 36 160 28 Thermal 42 | . . 42 Explosive 4 | . . 4 Electromagnetic . | . . . Robot Hit Streak 13 | 7 13 12 Robot Miss Streak 6 | 2 6 3 Penetration Max . | . . . Secondary Targets 7 | . 4 3 Max Gunslinging Chain 1 | . 1 1 Shots Hit Robots 163 | 22 98 43 Core Hits 79 | 8 44 27 Critical Kills . | . . . Critical Parts Destroyed 2 | . 2 . Critical Strikes 5 | . 2 3 Burn 3 | . . 3 Destroy 2 | . 2 . Melee Attacks . | . . . Impact . | . . . Slashing . | . . . Piercing . | . . . Sneak Attacks . | . . . Combat Hostiles . | . . . Follow-up Attacks . | . . . Damage Inflicted 2030 | 238 1061 731 Guns 1817 | 238 1055 524 Cannons . | . . . Explosions 207 | . . 207 Melee . | . . . Ramming 6 | . 6 . Kinetic 1484 | 238 1055 191 Thermal 333 | . . 333 Explosive 207 | . . 207 Electromagnetic . | . . . Impact . | . . . Slashing . | . . . Piercing . | . . . Highest Corruption . | . . . Average Corruption . | . . . Corruption Purged . | . . . Corruption Blocked . | . . . Overload Shots . | . . . Overflow Damage . | . . . Projectiles . | . . . Explosions . | . . . Melee . | . . . Knockbacks . | . . . Impact . | . . . Kinetic . | . . . Secondary . | . . . Self-Inflicted Damage 16 | . . 16 Shots 1 | . . 1 Rammed 1 | . 1 . Targets Rammed 1 | . 1 . Kicked . | . . . Crushed . | . . . Highest Temperature 116 | . 51 116 Average Temperature 17 | . 8 36 Received Heat Transfer 511 | . 371 140 Siege Activations . | . . . Martial Activations . | . . . Shielding Activations . | . . . Robots Disrupted . | . . . Combat Hostiles . | . . . Robots Corrupted . | . . . Combat Hostiles . | . . . Parts Fried . | . . . Impact Corruptions . | . . . Robots Melted . | . . . Combat Hostiles . | . . . Parts Melted 1 | . . 1 Heat Transferred 1073 | . . 1073 Parts Sabotaged . | . . . Parts Stolen . | . . . Parts Stripped . | . . . Power Chain Reactions . | . . . Alert | -11 -10 -10 ------- Run | Yrd Mat Min Maximum Alert Level . | . . . Low Security (%) 100 | 100 100 100 Level 1 . | . . . Level 2 . | . . . Level 3 . | . . . Level 4 . | . . . Level 5 . | . . . High Security . | . . . Max Security . | . . . Peak Influence 140 | 5 140 80 Initial 10 | . . 10 Average 41 | . 49 33 Influence Increases 748 | 30 533 185 Destroy 0b10 Robot/C 520 | . 380 140 Destroy 0b10 Robot/NC 50 | 30 10 10 Destroy Leader 114 | . 84 30 Successful Hack 14 | . 14 . Destroy Structure 5 | . . 5 Partial Spotted 15 | . 15 . Lose Combat Pursuer 30 | . 30 . Influence Decreases 748 | 30 506 212 Entered New Map 17 | . . 17 Time Decay 621 | 30 456 135 Lost Part 110 | . 50 60 Squads Dispatched 3 | . 3 . Investigation 2 | . 2 . Extermination . | . . . Reinforcement 1 | . 1 . Assault . | . . . Garrison . | . . . Intercept . | . . . Searches Triggered . | . . . Construction Impeded . | . . . Haulers Reinforced . | . . . Active Scanning Responses . | . . . Cargo Convoy Interrupts . | . . . Stealth | -11 -10 -10 --------- Run | Yrd Mat Min Distress Signals . | . . . Communications Jammed . | . . . Distress Signals . | . . . Times Spotted 51 | . 25 26 Peak Tracking Total 9 | . 3 9 Tactical Retreats 3 | . 2 1 Traps | -11 -10 -10 ------- Run | Yrd Mat Min Traps Triggered 3 | . 3 . Indirectly . | . . . Trap Hack Attempts . | . . . Triggered . | . . . Disarmed . | . . . Reprogrammed . | . . . Reused . | . . . Traps Extracted . | . . . Installed . | . . . Triggered . | . . . Machines | -11 -10 -10 ---------- Run | Yrd Mat Min Machines Disabled . | . . . Max in Single Turn . | . . . Machines Repaired . | . . . Machines Dismantled . | . . . Machines Sabotaged . | . . . Overloaded Fab Kills . | . . . Hacking | -11 -10 -10 --------- Run | Yrd Mat Min Machines Accessed 7 | . 7 . Terminals 7 | . 7 . Fabricators . | . . . Repair Stations . | . . . Recycling Units . | . . . Scanalyzers . | . . . Garrison Access . | . . . Total Hacks 17 | . 17 . Successful 11 | . 11 . Failed 6 | . 6 . Catastrophic . | . . . Database Lockouts . | . . . Manual 16 | . 16 . Terminals 17 | . 17 . Fabricators . | . . . Repair Stations . | . . . Recycling Units . | . . . Scanalyzers . | . . . Garrison Access . | . . . Terminal Hacks 1 | . 1 . Locate Traps 1 | . 1 . Fabricator Hacks . | . . . Repair Station Hacks . | . . . Recycling Unit Hacks . | . . . Scanalyzer . | . . . Garrison Access Hacks . | . . . Unauthorized Hacks 10 | . 10 . Terminals 10 | . 10 . Botnet 3 | . 3 . Skim 7 | . 7 . Fabricators . | . . . Repair Stations . | . . . Recycling Units . | . . . Scanalyzers . | . . . Garrison Access . | . . . Data Cores Recovered . | . . . Used . | . . . Hacking Detections 2 | . 2 . Full Trace Events 1 | . 1 . Feedback Events . | . . . Feedback Blocked . | . . . Robot Schematics Acquired . | . . . Robots Built . | . . . Authchips . | . . . Time . | . . . Total Robot Build Rating . | . . . Part Schematics Acquired . | . . . Parts Built . | . . . Authchips . | . . . Time . | . . . Total Part Build Rating . | . . . Parts Repaired . | . . . Time . | . . . Parts Recycled . | . . . Recycled Matter . | . . . Retrieved Matter . | . . . Retrieved Components . | . . . Parts Scanalyzed . | . . . Part Schematics Acquired . | . . . Parts Damaged . | . . . Bothacking | -11 -10 -10 ------------ Run | Yrd Mat Min Used RIF Installer . | . . . Robots Hacked . | . . . Non-combat . | . . . Combat . | . . . Robot Hacks Applied . | . . . Relay Couplers Released . | . . . Fabnet Peak Effective % . | . . . Robots Rewired . | . . . Allies Hacked . | . . . Hacks Repelled . | . . . Allies | -11 -10 -10 -------- Run | Yrd Mat Min Total Allies . | . . . Largest Group . | . . . Highest-Rated Group . | . . . Highest-Rated Ally . | . . . Total Orders . | . . . Ally Attacks . | . . . Total Damage . | . . . Kills . | . . . Allies Corrupted . | . . . Allies Melted . | . . . Intel | -11 -10 -10 ------- Run | Yrd Mat Min Active Infowar (turns) 1010 | 32 782 196 Seismic 1010 | 32 782 196 Robot Analysis Total . | . . . Derelict Logs Recovered . | . . . Drone Launches . | . . . Drone Recoveries . | . . . Exploration | -11 -10 -10 ------------- Run | Yrd Mat Min Turns Passed 2069 | 226 1493 350 Spaces Moved 1046 | 99 824 123 Core 16 | 11 . 5 Treads 448 | 88 360 . Legs 160 | . 77 83 Wheels 422 | . 387 35 Hover . | . . . Flight . | . . . Fastest Speed 50 | 50 115 95 Average Speed 147 | 147 141 182 Slowest Speed 600 | 160 190 600 Overloaded Moves . | . . . Propulsion Burnouts . | . . . Robots Hopped . | . . . Potential Cave-ins . | . . . Cave-ins Triggered . | . . . Exploration Rate (%) 43 | 5 95 31 Regions Visited 2 Branch Regions 1 Pre-discovered Areas 2 | . 2 . Known Exits Taken . | . . . Unknown Exits Taken 2 | 1 1 . Scrap Searched 1 | . . 1 Spaces Dug . | . . . Terrain Destroyed 11 | . . 11 Melee . | . . . Projectile . | . . . AOE 11 | . . 11 Terrain Rammed . | . . . Walls Destroyed . | . . . Machines Disabled . | . . . Actions | -11 -10 -10 --------- Run | Yrd Mat Min Total 1328 | 146 1005 177 Wait 67 | 10 51 6 Move 1044 | 98 823 123 Hop . | . . . Pick Up 35 | 13 21 1 Fast Attach 7 | 1 6 . Attach 20 | 6 8 6 Detach . | . . . Swap 7 | . 4 3 Drop 11 | . 10 1 Fire 136 | 18 81 37 Melee . | . . . Ram . | . . . Kick . | . . . Crush 1 | . 1 . Escape Stasis . | . . . Rewire . | . . . Trap . | . . . Miscellaneous . | . . . Route ------- -11/Scrapyard -10/Materials (discovered 6 exits: *Mat x3 / [*Min x2] / *Sub) -10/Mines (discovered 2 exits: *Mat x2) History --------- Turn | Location | Event 10 | -11/Scrapyard | Discovered new exit (range 15) 227 | -11/Scrapyard | Entered Materials 302 | -10/Materials | Discovered new exit (range 14) 304 | -10/Materials | Build established: Mutant 409 | -10/Materials | Discovered new exit (range 5) 550 | -10/Materials | Discovered new exit (range 12) 675 | -10/Materials | Discovered new exit (range 13) 727 | -10/Materials | Derelicts attacked the area 970 | -10/Materials | Discovered new exit (range 5) 1212 | -10/Materials | Learned Storage security intel 1281 | -10/Materials | Learned location of 1 exit from Storage 1431 | -10/Materials | Identified exit to Subcaves 1720 | -10/Materials | Entered Mines 1721 | -10/Mines | Identified exit to Materials 1886 | -10/Mines | Assembled infested the area 1920 | -10/Mines | Core integrity fell below 50% 1924 | -10/Mines | Found DCF Scrap (13 items) 1951 | -10/Mines | Lost 6 parts (1p2n1u2w) 1992 | -10/Mines | Core integrity fell below 20% 2018 | -10/Mines | Destroyed 7 combat bots 2070 | -10/Mines | Destroyed by as-61564 with Assembled Heavy Rifle Last Messages --------------- 02026_ U-05 Engineer destroyed. 02027_ The unstable cave ceiling collapses. 02032_ U-05 Engineer builds a Wall. 02035_ Acquired 21 matter. 02037_ U-05 Engineer builds a Wall. 02038_ The unstable cave ceiling collapses. 02042_ U-05 Engineer lays Concrete. 02044_ U-05 Engineer builds a Wall. 02047_ Acquired Wheel. 02048_ U-05 Engineer builds a Wall. 02053_ U-05 Engineer destroyed. 02054_ as-65065 suffers critical hit (Burn). 02054_ as-65065 destroyed. 02061_ K-01 Serf collects debris. 02062_ R-06 Scavenger collects Terrain Scan Processor. 02063_ Hvy. Ion Engine destroyed. 02066_ as-78634 suffers critical hit (Burn). 02066_ as-78634 destroyed. 02068_ R-06 Scavenger collects Terrain Scan Processor. 02068_ K-01 Serf collects debris. Map ----- +----------------------------------------------------+ | ???????# ??????????????????????????????????????? | | ???????# ??????##??????????????????????????????? | | ???????# #?????# ##?????????????????????????????? | | ??????## #??### ##????????????????????????????? | | ????### #### ?????????????????????????????? | | ?#### ## #???? ?????????????????????????? | | ## #?????% ##??????????????????????? | | # #??### #?????????????????????? | | # #### ###???????????????????? | | # * ## # ???????????????????? | | #????# ## #####???????????????? | | # # a %= ????????????????? | | ## * ?????????????????? | | [ ## ??????????????????? | | % ### == ## =%|???????????????????? | | = ???## ==![*## #???????????????????? | | * #????#### *|/### ????????????????????? | | # #???????######%### a ##???????????????????? | | # ###??????????#!## ## # #???????????????????? | | # ##?????????#* % ####????????????????? | | # #?????????####### a # ##???????????????? | | # #??????????????# ##??????????????? | | # ##?????????????# tr## #??????????????? | | # ###??????????## # % ##?????????????? | | ## #??????????# #% | ## #?????????????? | | ?## #??????????#####@ #### #????????????? | | ??# ##??????????# ### k###?## ##????????????? | | ??# #???????????#### # #????##?????????????? | | ??# #????????????## ####???????????????????? | | ?## #????????????# ##??????????????????????? | | ## ##????????????# #???????????????????????? | | # ###????????????# ????????????????????????? | | # ##????????????? #????????????????????????? | | # ##???????????? #?????????????????????????? | | # ####???????? ??????????????????????????? | | # ##???????# ??????????????????????????? | | # #???????### ??????????????????????????? | | # #?????????## ???????????????????????????? | | ## ##??????????# ???????????????????????????? | | ?## ##??????????? ???????????????????????????? | | ??## #???????????????????????????????????????? | | ??## ####????????????????????????????????????? | | ?## #????????????????????????????????????? | | ?# ## #????????????????????????????????????? | | ?# ## #????????????????????????????????????? | | ?# ## #????????????????????????????????????? | | ?# < ## ###??????????????????????????????????? | | ?# ##?????????????????????????????????? | | ?## ### #?????????????????????????????????? | | ??####### #?????????????????????????????????? | +----------------------------------------------------+ Best States ------------- Heat Dissipation 39 Energy Generation 14 Energy Capacity 280 Matter Stores 300 Matter Capacity 300 Sight Range 16 Terrain Scan Density 10 Evasion (%) 50 Recoil Reduction 2 Item Schematics ----------------- None Robot Schematics ------------------ None Fabricated ------------ Nothing Repaired ---------- Nothing Alien Tech Used ----------------- None Achievements -------------- None Challenges ------------ None Game ------ Seed SpreadBeamBeam Manual? 0 Play Time 00:15:16 Cumulative 186.6 hours Start 2025.09.19 @ 12:54:09 End 2025.09.19 @ 13:10:30 Sessions 1 Manual Loads 0 Difficulty Rogue Special Mode None Game No. 254 Rogue 254 Adventurer 0 Explorer 0 Win Type - Total 3 Types 2/0/0/1/0/0/0/0/0/0 Lore% 73 Gallery% 71 Achievement% 61 Wizard Run 0 Options --------- Layout 0 ASCII 0 Keyboard 0 Movement Mouse Keybinds 0 Fullscreen 1 Font 16/SmallcapsGlow Map View 75x55 Zoom Use 0% Tactical HUD 1 Map Filters NONE Filters NONE Steam 1 RUN: 3de07e52-0c2e-4a9d-8e1b-9093d55f1684